bitfinex-derivatives/quotes_ETHF0:USTF0_20241026
["timestamp","ask_amount","ask_price","bid_price","bid_amount"]
[1729934333976,3.2078,2475.5,2475.4,1.71677449]
[1729934334483,3.2078,2475.5,2475.4,2.14007449]
[1729934334780,3.2078,2475.5,2475.4,1.73568449]
[1729934335180,3.2078,2475.5,2475.4,2.14007449]
[1729934335477,0.4393,2475.7,2475.4,2.14007449]
[1729934335683,0.4393,2475.7,2475.6,1.31238449]
[1729934338982,0.4393,2475.7,2475.6,2.62476898]
[1729934339183,0.8658,2475.8,2475.6,1.31238449]
[1729934339485,3.2078,2475.9,2475.7,1.31238449]
[1729934339791,3.2078,2475.9,2475.8,1.75368449]
[1729934339980,3.2078,2475.9,2475.8,2.19058449]
[1729934340684,0.4215,2476.0,2475.8,2.19058449]
[1729934340885,0.4215,2476.0,2475.9,1.31238449]
[1729934341286,0.8258,2476.0,2475.9,1.31238449]
[1729934341583,1.6817,2476.0,2475.9,1.31238449]
[1729934341980,1.2774,2476.0,2475.9,1.31238449]
[1729934342382,1.6817,2476.0,2475.9,1.31238449]
[1729934342576,1.2774,2476.0,2475.9,1.31238449]
[1729934342786,1.6817,2476.0,2475.9,1.31238449]
[1729934344191,0.40431,2475.9,2475.8,1.31238449]
[1729934344491,3.61211,2475.9,2475.8,1.31238449]
[1729934347091,3.2078,2475.9,2475.8,1.31238449]
[1729934347990,3.2078,2475.9,2475.8,1.73918449]
[1729934350697,4.9207,2476.0,2475.8,1.73918449]
[1729934350896,4.5164,2476.0,2475.9,1.31238449]
[1729934351293,1.3086,2476.0,2475.9,1.73868449]
[1729934351497,4.9207,2476.0,2475.9,1.73868449]
[1729934351796,4.5164,2476.0,2475.9,1.73868449]
[1729934353801,4.9207,2476.0,2475.9,1.73868449]
[1729934354299,1.3086,2476.0,2475.9,1.73868449]
[1729934354499,4.5164,2476.0,2475.9,1.73868449]
[1729934355491,4.9207,2476.0,2475.9,1.31238449]
[1729934357810,1.7129,2476.0,2475.9,1.31238449]
[1729934358006,4.5164,2476.0,2475.9,1.31238449]
[1729934359814,4.9207,2476.0,2475.9,1.31238449]
[1729934360011,4.5164,2476.0,2475.9,1.31238449]
[1729934360914,4.0695,2476.0,2475.9,1.31238449]
[1729934361510,4.4738,2476.0,2475.9,1.31238449]
[1729934363111,4.0695,2476.0,2475.9,1.31238449]
[1729934366717,3.6293,2476.0,2475.9,1.31238449]
[1729934368725,3.2078,2476.0,2475.9,1.31238449]
[1729934369917,3.2078,2476.0,2475.9,1.71669449]
[1729934372425,3.2078,2476.4,2476.2,0.40425]
[1729934372720,0.40421,2476.6,2476.3,2.55788449]
[1729934373028,3.61199,2476.7,2476.5,1.31238449]
[1729934373222,3.2078,2476.7,2476.6,1.31238449]
[1729934373525,0.4234,2476.9,2476.6,1.71658449]
[1729934373825,0.82755,2476.9,2476.8,1.31238449]
[1729934374028,1.67685,2476.9,2476.8,1.31238449]
[1729934375022,6.62268449,2476.9,2476.7,1.31238449]
[1729934375223,6.62268449,2476.9,2476.3,2.01099949]
[1729934375224,0.40421,2476.5,2476.3,0.4276]
[1729934375423,0.4256,2476.4,2476.3,0.4276]
[1729934375619,0.4256,2476.4,2476.3,1.73998449]
[1729934375821,1.67423,2476.4,2476.3,1.31238449]
[1729934378221,4.88203,2476.4,2476.3,1.31238449]
[1729934378723,10.23281449,2476.4,2476.3,1.31238449]
[1729934379227,0.4043,2476.0,2475.9,1.05559966]
[1729934379425,3.6121,2476.0,2475.9,1.31238449]
[1729934381223,4.0269,2476.0,2475.9,1.31238449]
[1729934382325,4.0269,2476.0,2475.6,1.05559966]
[1729934382326,0.40435,2475.7,2475.6,1.05559966]
[1729934382623,3.2078,2475.7,2475.6,1.31238449]
[1729934383021,3.2078,2475.7,2475.6,2.36798415]
[1729934384719,3.2078,2475.7,2475.6,4.08472864]
[1729934384922,3.2078,2475.7,2475.6,6.44257814]
[1729934385122,0.831,2476.1,2475.9,0.4043]
[1729934385123,3.2078,2476.1,2475.9,0.4043]
[1729934385329,3.2078,2476.1,2476.0,1.31238449]
[1729934385718,7.2462,2476.1,2476.0,1.31238449]
[1729934386725,3.2078,2476.1,2476.0,1.31238449]
[1729934387319,3.2078,2476.1,2476.0,1.71668449]
[1729934388328,1.2638,2476.5,2476.0,12.77231538]
[1729934388526,1.2638,2476.5,2476.4,1.31238449]
[1729934388726,1.6807,2476.5,2476.4,1.31238449]
[1729934389726,0.8497,2476.5,2476.4,1.31238449]
[1729934390332,0.8497,2476.5,2476.3,0.4499]
[1729934391632,3.2078,2476.6,2476.3,0.85414]
[1729934392329,1.6765,2476.8,2476.3,0.85414]
[1729934392533,0.40418,2476.7,2476.3,0.85414]
[1729934392731,2.08067,2476.8,2476.4,0.40423]
[1729934393136,1.6765,2476.8,2476.4,0.40423]
[1729934393330,1.6765,2476.8,2476.4,0.81303]
[1729934393531,1.24967,2476.8,2476.4,0.4088]
[1729934393732,1.24967,2476.8,2476.4,0.81303]
[1729934393733,0.8455,2476.8,2476.4,0.81303]
[1729934394638,0.8455,2476.8,2476.4,0.4088]
[1729934394840,0.8455,2476.8,2476.4,3.24855147]
[1729934395332,0.8455,2476.8,2476.4,3.65277147]
[1729934395542,0.8455,2476.8,2476.4,3.24855147]
[1729934395838,0.8455,2476.8,2476.6,0.40419]
[1729934396241,0.8455,2476.8,2476.7,0.422]
[1729934397036,0.4219,2476.8,2476.7,0.422]
[1729934397227,0.4332,2477.1,2476.7,4.4596]
[1729934397428,0.8609,2477.1,2476.7,0.422]
[1729934397626,0.4277,2477.1,2476.8,3.26225147]
[1729934397830,10.949,2478.1,2477.0,2.83975147]
[1729934397831,3.6355,2477.4,2477.0,2.83975147]
[1729934398032,0.4277,2477.4,2477.2,2.83975147]
[1729934398636,3.6281,2477.7,2477.2,2.83975147]
[1729934398842,3.6281,2477.7,2477.3,0.82657]
[1729934399242,3.6281,2477.7,2477.3,0.4225]
[1729934399434,0.40404,2477.6,2477.2,2.83975147]
[1729934399636,0.40405,2477.6,2477.2,2.83975147]
[1729934399843,0.85106,2477.5,2477.2,2.83975147]
[1729934400136,0.85106,2477.5,2477.1,0.4074]
[1729934400339,0.40407,2477.4,2477.1,0.4074]
[1729934401043,3.2078,2477.4,2477.1,0.4074]
[1729934401237,0.447,2477.5,2477.1,0.4074]
[1729934401645,0.85106,2477.5,2477.1,0.4074]
[1729934401946,0.40407,2477.4,2477.1,0.4074]
[1729934402140,0.85106,2477.5,2477.1,0.4074]
[1729934402738,3.61183,2477.7,2477.2,2.83975147]
[1729934402941,3.2078,2477.7,2477.2,2.83975147]
[1729934403244,0.4458,2477.6,2477.2,3.24384147]
[1729934403447,0.4458,2477.6,2477.3,0.40407]
[1729934403643,0.4458,2477.6,2477.2,2.83975147]
[1729934403946,0.4458,2477.6,2477.3,0.40408]
[1729934404538,3.2078,2477.7,2477.4,2.83975147]
[1729934404748,3.2078,2477.7,2477.1,0.8411]
[1729934404749,0.4324,2477.9,2477.6,2.83975147]
[1729934404951,0.4324,2477.9,2477.7,0.4344]
[1729934406142,0.83639,2477.9,2477.7,0.4344]
[1729934406741,0.4324,2477.9,2477.7,0.4344]
[1729934409248,0.83639,2477.9,2477.7,0.4344]
[1729934409454,0.4324,2477.9,2477.5,3.28875147]
[1729934409753,0.40401,2477.8,2477.5,3.71895147]
[1729934410343,0.83639,2477.9,2477.5,3.71895147]
[1729934410546,0.4324,2477.9,2477.5,3.71895147]
[1729934410746,0.40401,2477.8,2477.5,3.71895147]
[1729934411356,0.4324,2477.9,2477.5,3.71895147]
[1729934411357,0.83639,2477.9,2477.5,3.71895147]
[1729934411853,0.4324,2477.9,2477.5,4.12300147]
[1729934413056,0.83639,2477.9,2477.5,4.12300147]
[1729934413254,0.83639,2477.9,2477.5,3.71895147]
[1729934413455,0.83639,2477.9,2477.5,4.12300147]
[1729934413656,0.4324,2477.9,2477.5,4.12300147]
[1729934414354,0.83639,2477.9,2477.5,3.71895147]
[1729934414653,0.4324,2477.9,2477.5,4.12300147]
[1729934415054,0.4324,2477.9,2477.5,3.71895147]
[1729934415253,0.404,2477.8,2477.5,3.71895147]
[1729934415452,0.4324,2477.9,2477.5,3.71895147]
[1729934415654,0.8364,2477.9,2477.5,3.71895147]
[1729934416451,0.40401,2477.8,2477.5,3.71895147]
[1729934416657,0.8364,2477.9,2477.5,3.71895147]
[1729934416859,0.4407,2477.7,2477.5,3.71895147]
[1729934418364,0.4324,2477.9,2477.5,3.26995147]
[1729934418862,0.40401,2477.8,2477.5,3.26995147]
[1729934419257,0.4299,2477.7,2477.5,3.26995147]
[1729934419454,1.27133,2477.7,2477.5,2.83975147]
[1729934420663,0.8673,2477.7,2477.5,2.83975147]
[1729934420871,1.27133,2477.7,2477.5,2.83975147]
[1729934421664,0.40404,2477.6,2477.5,2.83975147]
[1729934421859,0.40404,2477.6,2477.2,4.08234147]
[1729934422163,0.4136,2477.5,2477.2,3.67825147]
[1729934422363,0.4136,2477.5,2477.2,4.08235147]
[1729934422665,0.4136,2477.5,2477.2,3.67825147]
[1729934422960,0.40409,2477.3,2477.0,3.2078]
[1729934423164,0.4458,2477.4,2477.0,3.6591]
[1729934423362,0.81089,2477.3,2477.0,3.6591]
[1729934423956,0.4068,2477.3,2477.0,3.6591]
[1729934424151,0.81089,2477.3,2477.0,3.6591]
[1729934424561,0.4068,2477.3,2477.0,3.6591]
[1729934424864,0.40413,2477.1,2476.8,2.83975147]
[1729934425069,0.84064,2477.0,2476.8,2.83975147]
[1729934425365,0.8525,2477.0,2476.8,2.83975147]
[1729934425565,0.416,2477.0,2476.9,0.40415]
[1729934425756,0.81089,2477.3,2476.8,2.83975147]
[1729934425757,0.8433,2477.3,2476.8,2.83975147]
[1729934425959,0.8433,2477.3,2477.1,3.24387147]
[1729934426166,3.2078,2477.4,2477.2,0.4445]
[1729934426460,3.2078,2477.4,2477.2,0.8616]
[1729934427055,0.416,2477.5,2477.2,1.2657]
[1729934427362,0.416,2477.5,2477.3,2.83975147]
[1729934427757,0.416,2477.5,2477.3,3.24383147]
[1729934427957,0.416,2477.5,2477.3,2.83975147]
[1729934428159,0.416,2477.5,2477.3,3.24383147]
[1729934429069,4.49691,2477.8,2477.4,0.40406]
[1729934429368,4.49691,2477.8,2477.3,2.83975147]
[1729934429369,4.0929,2477.8,2477.3,2.83975147]
[1729934429567,4.0929,2477.8,2477.5,0.40405]
[1729934429868,0.4193,2477.7,2477.5,0.40405]
[1729934430160,0.4193,2477.7,2477.6,0.4459]
[1729934431369,3.6443,2477.8,2477.6,0.4459]
[1729934431562,4.0747,2477.8,2477.6,0.4459]
[1729934432570,0.8669,2477.8,2477.7,0.40402]
[1729934432770,3.2078,2478.1,2477.7,2.83975147]
[1729934433069,0.93993886,2478.0,2477.7,2.83975147]
[1729934433267,0.876,2478.0,2477.7,2.83975147]
[1729934434063,1.27997,2478.0,2477.7,2.83975147]
[1729934434669,0.876,2478.0,2477.7,2.83975147]
[1729934435072,0.40399,2477.9,2477.6,3.73165147]
[1729934435464,1.27998,2478.0,2477.6,3.73165147]
[1729934435878,0.40399,2477.9,2477.6,3.73165147]
[1729934436064,0.876,2478.0,2477.6,3.73165147]
[1729934436264,1.27998,2478.0,2477.6,3.73165147]
[1729934436768,0.876,2478.0,2477.6,3.73165147]
[1729934436971,0.876,2478.0,2477.6,4.13568147]
[1729934437666,0.876,2478.0,2477.6,4.56198147]
[1729934438075,0.876,2478.0,2477.6,3.28565147]
[1729934438372,1.27998,2478.0,2477.6,3.28565147]
[1729934438766,1.27998,2478.0,2477.6,3.68968147]
[1729934438965,1.27998,2478.0,2477.6,4.09748147]
[1729934439373,1.27998,2478.0,2477.6,3.69345147]
[1729934439374,0.40399,2477.9,2477.6,3.69345147]
[1729934439573,0.40399,2477.9,2477.6,0.8537]
[1729934439773,0.4354,2477.8,2477.6,0.4459]
[1729934440074,3.6432,2477.8,2477.2,3.6156]
[1729934440263,0.40406,2477.5,2477.2,4.0235]
[1729934440468,0.4151,2477.4,2477.2,1.2198]
[1729934440668,0.4151,2477.4,2477.2,0.8157]
[1729934441173,0.4151,2477.4,2477.3,2.83975147]
[1729934442570,0.4174,2477.5,2477.3,3.8948681]
[1729934443967,0.4271,2477.6,2477.3,3.8948681]
[1729934444166,0.4271,2477.6,2477.4,1.05511663]
[1729934444573,0.4271,2477.6,2477.5,0.4194]
[1729934445166,0.4271,2477.6,2477.4,1.05511663]
[1729934446170,0.83115,2477.6,2477.4,1.05511663]
[1729934446376,0.83115,2477.6,2477.3,4.3434681]
[1729934446670,0.4271,2477.6,2477.3,4.3434681]
[1729934446876,0.417,2477.7,2477.5,3.24380147]
[1729934447077,0.82102,2477.7,2477.6,0.4486]
[1729934447280,0.8657,2477.7,2477.6,0.4486]
[1729934448980,0.4487,2477.7,2477.6,0.4486]
[1729934449169,0.4487,2477.7,2477.6,1.94561663]
[1729934449373,0.40399,2477.9,2477.6,1.94561663]
[1729934449575,0.42,2477.9,2477.7,2.83975147]
[1729934449768,0.42,2477.9,2477.7,3.8948681]
[1729934450482,0.42,2477.9,2477.7,4.2988781]
[1729934451180,0.42,2477.9,2477.7,3.8948681]
[1729934451376,0.82399,2477.9,2477.7,3.8948681]
[1729934451584,0.42,2477.9,2477.7,3.8948681]
[1729934453387,0.42,2477.9,2477.7,4.2988881]
[1729934453686,0.42,2477.9,2477.7,3.8948681]
[1729934455185,0.82399,2477.9,2477.7,3.8948681]
[1729934455681,0.42,2477.9,2477.7,3.8948681]
[1729934455985,0.82399,2477.9,2477.7,3.8948681]
[1729934456382,0.42,2477.9,2477.7,3.8948681]
[1729934456585,0.42,2477.9,2477.6,1.05511663]
[1729934456883,0.40402,2477.7,2477.6,1.05511663]
[1729934457184,0.40404,2477.6,2477.4,1.05511663]
[1729934457374,0.40404,2477.6,2477.2,6.87464147]
[1729934457375,1.68544,2477.6,2477.2,6.87464147]
[1729934458483,1.2814,2477.6,2477.3,0.40408]
[1729934458680,3.61181,2477.8,2477.4,3.24381147]
[1729934458889,0.409,2477.7,2477.4,3.24381147]
[1729934459184,0.409,2477.7,2477.5,0.4291]
[1729934462286,0.409,2477.7,2477.6,2.83975147]
[1729934462491,3.2078,2477.8,2477.6,2.83975147]
[1729934462686,3.2078,2477.8,2477.6,3.25765147]
[1729934463385,0.40402,2477.7,2477.6,2.83975147]
[1729934463786,3.2078,2477.8,2477.6,2.83975147]
[1729934463787,3.61181,2477.8,2477.6,2.83975147]
[1729934463993,3.2078,2477.8,2477.6,2.83975147]
[1729934464289,3.61181,2477.8,2477.6,2.83975147]
[1729934466294,3.2078,2477.8,2477.7,1.30991222]
[1729934466992,4.0413,2477.9,2477.7,1.30991222]
[1729934467895,0.8335,2477.9,2477.7,1.30991222]
[1729934468495,4.0413,2477.9,2477.7,1.30991222]
[1729934468791,3.6373,2477.9,2477.7,1.30991222]
[1729934468996,0.404,2477.8,2477.7,1.30991222]
[1729934470088,3.2078,2477.9,2477.7,1.30991222]
[1729934470289,1.2612,2477.8,2477.7,1.30991222]
[1729934470492,1.6652,2477.8,2477.7,1.30991222]
[1729934471195,1.2612,2477.8,2477.6,1.05511663]
[1729934471388,4.44002,2477.7,2477.6,2.36502885]
[1729934472790,0.40405,2477.5,2477.4,2.89302158]
[1729934473097,1.24705,2477.5,2477.4,2.89302158]
[1729934473297,5.28385,2477.5,2477.4,2.89302158]
[1729934473495,5.71355,2477.5,2477.4,2.89302158]
[1729934475292,5.71355,2477.5,2477.4,1.30991222]
[1729934476292,0.40413,2477.0,2476.6,4.65317997]
[1729934476492,0.85375,2476.9,2476.7,0.4359]
[1729934476693,1.73485,2476.9,2476.8,1.30991222]
[1729934478295,1.73485,2476.9,2476.6,0.836]
[1729934478496,2.57785,2476.9,2476.6,0.836]
[1729934478694,0.40417,2476.8,2476.6,0.4097]
[1729934479097,5.78566,2476.9,2476.5,2.83944459]
[1729934479696,0.40418,2476.8,2476.5,2.83944459]
[1729934480393,5.3815,2476.9,2476.5,2.83944459]
[1729934480593,3.2078,2476.9,2476.7,2.83944459]
[1729934480794,3.2078,2476.9,2476.8,1.3215]
[1729934482694,3.2078,2477.3,2476.8,5.3591]
[1729934482893,3.2078,2477.3,2477.2,2.83944459]
[1729934483092,3.2078,2477.3,2476.8,1.3215]
[1729934483303,3.2078,2477.3,2477.1,3.24355459]
[1729934483496,3.2078,2477.3,2477.2,0.4187]
[1729934483691,3.2078,2477.3,2477.2,0.8228]
[1729934484095,0.844,2477.6,2477.2,4.4555]
[1729934484303,0.844,2477.6,2477.3,4.11302459]
[1729934484799,3.2078,2477.7,2477.4,0.40406]
[1729934485004,3.2078,2477.7,2477.5,0.40405]
[1729934485201,3.2078,2477.7,2477.5,2.83944459]
[1729934485507,3.2078,2477.7,2477.6,0.4458]
[1729934487007,3.61182,2477.7,2477.3,3.70894459]
[1729934488805,0.40404,2477.6,2477.3,3.70894459]
[1729934488999,3.61183,2477.7,2477.3,3.70894459]
[1729934490809,3.2078,2477.7,2477.3,3.70894459]
[1729934491005,0.40404,2477.6,2477.3,3.70894459]
[1729934491310,0.83374,2477.6,2477.3,3.70894459]
[1729934491606,0.85285,2477.5,2477.3,0.8695]
[1729934493019,0.40404,2477.6,2477.3,0.8695]
[1729934494611,4.5026,2477.8,2477.3,0.8695]
[1729934494805,0.40406,2477.5,2477.3,0.8695]
[1729934495208,4.9355,2477.8,2477.3,0.8695]
[1729934495408,0.40404,2477.6,2477.3,0.8695]
[1729934502125,4.9355,2477.8,2477.3,0.8695]
[1729934502426,0.40404,2477.6,2477.5,1.31014418]
[1729934505329,1.71418418,2477.6,2477.5,1.31014418]
[1729934505523,1.71418418,2477.6,2477.4,1.31014418]
[1729934505719,0.4229,2477.5,2477.4,1.31014418]
[1729934506520,0.4229,2477.5,2477.1,3.6536]
[1729934506521,6.17390418,2477.5,2477.1,3.6536]
[1729934506721,0.4175,2477.4,2477.1,4.05771]
[1729934507120,0.4175,2477.4,2477.2,0.4041]
[1729934508536,0.4229,2477.5,2477.3,1.31014418]
[1729934508731,0.4175,2478.2,2477.4,5.40984418]
[1729934508920,0.4175,2478.2,2478.0,1.31014418]
[1729934508921,1.2856,2478.2,2478.0,1.31014418]
[1729934509127,1.68954,2478.2,2478.0,1.31014418]
[1729934509333,0.40395,2478.1,2478.0,1.31014418]
[1729934509534,1.24995,2478.1,2478.0,1.31014418]
[1729934509925,2.99969418,2478.2,2478.0,1.31014418]
[1729934510128,0.846,2478.1,2477.6,0.40403]
[1729934510431,0.846,2478.1,2478.0,1.31014418]
[1729934510632,2.99969418,2478.2,2478.0,1.31014418]
[1729934510831,3.84569418,2478.2,2478.0,1.31014418]
[1729934512829,3.84569418,2478.2,2478.1,1.31014418]
[1729934514732,3.83969418,2478.2,2478.1,1.31014418]
[1729934518335,2.52955,2478.2,2478.1,1.31014418]
[1729934520636,2.52855,2478.2,2478.1,1.31014418]
[1729934520934,0.40399,2477.9,2477.8,1.2629]
[1729934521338,3.43474418,2478.2,2477.8,1.2629]
[1729934521339,2.1246,2478.2,2477.8,1.2629]
[1729934521639,0.40398,2478.0,2477.8,1.2629]
[1729934522540,0.40398,2478.0,2477.9,1.31014418]
[1729934524236,3.61178,2478.0,2477.9,1.31014418]
[1729934524543,0.40398,2478.0,2477.9,1.31014418]
[1729934528333,3.61178,2478.0,2477.9,1.31014418]
[1729934529747,0.40398,2478.0,2477.9,1.31014418]
[1729934535544,3.61178,2478.0,2477.9,1.31014418]
[1729934536554,0.40398,2478.0,2477.9,1.31014418]
[1729934536746,3.61178,2478.0,2477.9,1.31014418]
[1729934537547,0.40398,2478.0,2477.9,1.31014418]
[1729934538058,3.61178,2478.0,2477.9,1.31014418]
[1729934538251,0.40402,2477.7,2477.6,1.58238939]
[1729934538553,3.61182,2477.7,2477.6,1.58238939]
[1729934538757,7.2438,2477.7,2477.6,1.31014418]
[1729934539052,8.47922,2477.7,2477.6,1.31014418]
[1729934540752,0.40408,2477.3,2477.2,0.8575]
[1729934540949,0.40408,2477.3,2477.2,2.16764418]
[1729934541152,0.40408,2477.3,2477.2,1.75174418]
[1729934541455,0.40408,2477.3,2477.0,0.4145]
[1729934541456,0.40412,2477.1,2477.0,0.4145]
[1729934541757,0.40412,2477.1,2477.0,1.72464418]
[1729934542155,1.31014418,2477.2,2476.9,0.4496]
[1729934542355,0.40413,2477.0,2476.9,1.31014418]
[1729934543352,1.31014418,2477.0,2476.7,5.11308997]
[1729934543547,0.40417,2476.8,2476.7,5.55913415]
[1729934543957,3.61197,2476.8,2476.7,5.55913415]
[1729934544157,3.61197,2476.8,2476.7,1.31014418]
[1729934544358,4.92211418,2476.8,2476.7,1.31014418]
[1729934544860,3.61197,2476.8,2476.7,1.31014418]
[1729934546955,4.44897,2476.8,2476.7,1.31014418]
[1729934548365,1.24117,2476.8,2476.7,1.31014418]
[1729934550262,7.49488836,2476.8,2475.9,3.2078]
[1729934550462,7.49488836,2476.8,2476.1,1.31014418]
[1729934550463,1.31014418,2476.3,2476.1,1.31014418]
[1729934550765,0.40428,2476.1,2475.9,3.6512]
[1729934551664,0.40428,2476.1,2476.0,1.31014418]
[1729934553263,0.837,2476.2,2476.0,1.31014418]
[1729934553468,1.24127,2476.2,2476.1,1.31014418]
[1729934567181,0.40427,2476.2,2476.1,1.31014418]
[1729934567378,0.40413,2477.0,2476.4,0.40422]
[1729934567681,0.40413,2477.0,2476.9,1.31014418]
[1729934567883,4.94374418,2477.1,2476.9,1.31014418]
[1729934568078,0.40413,2477.0,2476.9,1.31014418]
[1729934568383,2.14714418,2477.0,2476.8,1.31014418]
[1729934568584,0.40416,2476.9,2476.8,1.31014418]
[1729934568784,1.94464834,2477.0,2476.8,1.31014418]
[1729934569279,1.31014418,2477.0,2476.8,1.31014418]
[1729934569478,0.837,2477.0,2476.9,1.31014418]
[1729934569685,2.55127418,2477.0,2476.9,1.31014418]
[1729934569987,2.14714418,2477.0,2476.9,1.31014418]
[1729934570783,0.837,2477.0,2476.9,1.31014418]
[1729934571779,5.35494418,2477.1,2476.9,1.31014418]
[1729934572879,5.35494418,2477.1,2477.0,1.31014418]
[1729934573081,3.2078,2477.1,2477.0,1.31014418]
[1729934573282,0.837,2477.4,2477.0,1.31014418]
[1729934573584,0.837,2477.4,2477.2,1.31014418]
[1729934574486,2.55122418,2477.4,2477.2,1.31014418]
[1729934574692,0.4294,2477.7,2477.2,1.31014418]
[1729934574887,1.31014418,2477.4,2477.2,1.31014418]
[1729934575187,1.71421418,2477.4,2477.2,1.31014418]
[1729934576386,1.31014418,2477.3,2477.1,0.4512]
[1729934576590,0.4041,2477.2,2477.0,1.31014418]
[1729934576887,2.16074418,2477.3,2477.0,1.31014418]
[1729934577083,0.4465,2477.3,2477.1,1.31014418]
[1729934577285,1.75664418,2477.3,2477.1,1.31014418]
[1729934577982,1.75664418,2477.3,2476.7,1.3253]
[1729934578190,1.71424418,2477.2,2477.0,1.31014418]
[1729934578388,1.31014418,2477.2,2477.0,1.31014418]
[1729934578795,1.71425418,2477.2,2477.0,1.31014418]
[1729934580081,2.16714418,2477.1,2476.7,1.3253]
[1729934580286,2.98667418,2477.1,2476.8,1.31014418]
[1729934580688,0.40414,2477.0,2476.8,1.31014418]
[1729934581092,0.4345,2476.9,2476.8,1.31014418]
[1729934588292,0.4345,2476.9,2476.8,1.71431418]
[1729934588595,0.4154,2477.1,2476.8,1.31014418]
[1729934588792,0.857,2477.2,2477.0,1.31014418]
[1729934588997,0.857,2477.2,2477.1,1.2853]
[1729934589393,1.73594418,2477.3,2477.1,1.2853]
[1729934589394,0.4258,2477.3,2477.1,2.59544418]
[1729934589593,0.4258,2477.3,2477.2,1.31014418]
[1729934590296,0.4258,2477.3,2477.2,1.71424418]
[1729934590500,0.4258,2477.3,2477.2,1.31014418]
[1729934591193,0.857,2477.5,2477.3,0.40408]
[1729934591391,0.4305,2477.6,2477.4,1.31014418]
[1729934591596,1.7383,2477.6,2477.4,1.31014418]
[1729934593795,3.45248418,2477.6,2477.3,1.31014418]
[1729934593996,3.04844418,2477.6,2477.3,1.31014418]
[1729934594795,3.04844418,2477.6,2477.3,1.71422418]
[1729934595000,3.04844418,2477.6,2477.5,1.31014418]
[1729934598101,0.8813,2477.6,2477.5,1.31014418]
[1729934598307,4.0648,2477.7,2477.5,1.71419418]
[1729934598607,4.0648,2477.7,2477.6,1.74534418]
[1729934599004,4.5028,2477.7,2477.6,1.74534418]
[1729934599200,3.2078,2477.7,2477.6,2.14938418]
[1729934599502,3.2078,2477.7,2477.6,1.74534418]
[1729934600105,1.74814418,2477.8,2477.6,1.74534418]
[1729934600493,0.438,2477.8,2477.7,1.31014418]
[1729934601198,0.438,2477.8,2477.7,1.71416418]
[1729934601399,0.438,2477.8,2477.7,1.31014418]
[1729934601900,0.438,2477.8,2477.7,1.71416418]
[1729934602598,0.438,2477.8,2477.7,1.76142379]
[1729934603299,5.37494418,2478.0,2477.7,1.76142379]
[1729934603500,5.37494418,2478.0,2477.9,1.31014418]
[1729934603704,5.79264418,2478.0,2477.9,1.31014418]
[1729934604397,5.79264418,2478.0,2477.8,0.04725961]
[1729934604398,6.19662418,2478.0,2477.8,1.35740379]
[1729934604593,1.26288457,2477.9,2477.7,1.31014418]
[1729934605097,1.31014418,2477.8,2477.7,1.31014418]
[1729934606003,0.40399,2477.9,2477.7,1.31014418]
[1729934606004,1.31014418,2477.9,2477.7,1.31014418]
[1729934606204,1.71413418,2477.9,2477.7,1.31014418]
[1729934607199,1.31014418,2477.9,2477.7,1.31014418]
[1729934608195,1.31014418,2477.8,2477.6,2.59634418]
[1729934608399,1.71415418,2477.8,2477.6,2.59634418]
[1729934608600,1.31014418,2477.8,2477.2,3.2078]
[1729934608797,1.31014418,2477.6,2477.4,1.31014418]
[1729934608998,0.4178,2477.5,2477.4,1.31014418]
[1729934611612,0.4178,2477.5,2477.4,1.71421418]
[1729934615007,0.4178,2477.5,2477.4,1.31014418]
[1729934617408,0.82185,2477.5,2477.4,1.31014418]
[1729934617605,2.13199418,2477.5,2477.2,1.31014418]
[1729934618013,2.13199418,2477.5,2477.2,1.71423418]
[1729934618014,1.72794418,2477.5,2477.2,1.71423418]
[1729934618407,3.6562,2477.7,2477.3,1.31014418]
[1729934618603,1.71417418,2477.7,2477.5,1.31014418]
[1729934618803,0.8816,2477.6,2477.5,1.31014418]
[1729934619407,2.19174418,2477.6,2477.3,1.31014418]
[1729934619612,0.40409,2477.3,2477.1,1.71774418]
[1729934619814,0.8816,2477.2,2477.1,1.31014418]
[1729934620010,1.3155,2477.2,2477.1,1.31014418]
[1729934622514,1.75894418,2477.2,2477.0,1.31014418]
[1729934622722,0.4477,2477.1,2477.0,1.31014418]
[1729934623307,0.4477,2477.1,2476.8,1.4881756]
[1729934623308,1.75784418,2477.1,2476.8,1.4881756]
[1729934623517,1.75784418,2477.1,2476.9,1.31014418]
[1729934624411,1.31014418,2477.0,2476.9,1.31014418]
[1729934626121,1.71427418,2477.0,2476.9,1.31014418]
[1729934626320,1.31014418,2477.0,2476.9,1.31014418]
[1729934627116,3.2078,2478.2,2476.9,14.93577857]
[1729934627319,3.6551,2478.2,2478.0,1.31014418]
[1729934627523,3.6551,2478.2,2477.9,1.31014418]
[1729934627524,1.31014418,2478.1,2477.9,1.31014418]
[1729934627817,1.73194418,2478.1,2477.8,1.31014418]
[1729934628016,1.31014418,2478.0,2477.8,1.31014418]
[1729934628322,0.4218,2478.1,2477.7,0.40401]
[1729934629021,1.3528,2478.1,2477.7,0.40401]
[1729934629223,1.3528,2478.1,2477.8,0.404]
[1729934629424,1.3528,2478.1,2477.7,0.40401]
[1729934630123,1.3528,2478.1,2477.6,5.12788143]
[1729934630316,1.3528,2478.1,2477.8,0.40399]
[1729934631213,1.3528,2478.1,2477.6,4.07706371]
[1729934631415,1.75676,2478.1,2477.6,1.23382]
[1729934631622,1.75676,2478.1,2477.7,0.40402]
[1729934631623,1.3528,2478.1,2477.7,0.40402]
[1729934632424,1.75676,2478.1,2477.6,1.23383]
[1729934632918,1.75676,2478.1,2477.6,0.82243]
[1729934633618,1.75676,2478.1,2477.5,4.25861772]
[1729934633619,3.2078,2477.9,2477.5,1.05081772]
[1729934633828,3.61179,2477.9,2477.4,1.89637772]
[1729934634019,0.404,2477.8,2477.4,1.49231772]
[1729934634325,0.438,2477.7,2477.4,0.4415]
[1729934634514,0.8826,2477.7,2477.4,1.49231772]
[1729934634727,0.8826,2477.7,2477.4,1.89638772]
[1729934635727,4.0904,2477.7,2477.4,1.89638772]
[1729934636325,0.8826,2477.7,2477.4,1.89638772]
[1729934636925,4.49442,2477.7,2477.4,1.05081772]